[Event "Live Chess"]
[Site "Chess.com"]
[Date "2024.06.01"]
[Round "-"]
[White "CennyddB"]
[Black "NeilDruggan73"]
[Result "0-1"]
[WhiteElo "1133"]
[BlackElo "1748"]
[TimeControl "300"]
[EndTime "9:58:52 PDT"]
[Termination "NeilDruggan73 won by resignation"]

1. d4 {[%clk 0:04:56]} 1... Nf6 {[%clk 0:04:56.9]} 2. Nf3 {[%clk 0:04:53.3]}
2... g6 {[%clk 0:04:53]} 3. g3 {[%clk 0:04:50.4]} 3... Bg7 {[%clk 0:04:52.5]} 4.
Bg2 {[%clk 0:04:49.5]} 4... d5 {[%clk 0:04:50.2]} 5. O-O {[%clk 0:04:47.7]} 5...
c6 {[%clk 0:04:49.8]} 6. b3 {[%clk 0:04:44.7]} 6... Bg4 {[%clk 0:04:44.1]} 7.
Bb2 {[%clk 0:04:43]} 7... Qc8 {[%clk 0:04:42.4]} 8. Re1 {[%clk 0:04:33.1]} 8...
Ne4 {[%clk 0:04:40.5]} 9. Nbd2 {[%clk 0:04:27.5]} 9... h5 {[%clk 0:04:33.9]} 10.
Nxe4 {[%clk 0:04:22.3]} 10... dxe4 {[%clk 0:04:32.6]} 11. Nd2 {[%clk 0:04:19]}
11... f5 {[%clk 0:04:22.2]} 12. h3 {[%clk 0:04:16]} 12... h4 {[%clk 0:04:16.2]}
13. hxg4 {[%clk 0:04:11.6]} 13... h3 {[%clk 0:04:15.2]} 14. Bh1 {[%clk
0:04:09.2]} 14... Qe6 {[%clk 0:04:06.1]} 15. f4 {[%clk 0:04:02.6]} 15... Nd7
{[%clk 0:04:03]} 16. Kf2 {[%clk 0:03:52.4]} 16... O-O-O {[%clk 0:03:59.9]} 17.
Qc1 {[%clk 0:03:42.3]} 17... Nf6 {[%clk 0:03:59.4]} 18. g5 {[%clk 0:03:39.9]}
18... Ng4+ {[%clk 0:03:57.2]} 19. Kf1 {[%clk 0:03:38.5]} 19... h2 {[%clk
0:03:39.2]} 20. Kg2 {[%clk 0:03:33.5]} 20... Rh7 {[%clk 0:03:21.7]} 21. e3
{[%clk 0:03:27.6]} 21... Rdh8 {[%clk 0:03:16.8]} 22. Nf1 {[%clk 0:03:26.4]}
22... Rh3 {[%clk 0:03:11.4]} 23. Qd2 {[%clk 0:03:19.4]} 23... Qd5 {[%clk
0:03:08.1]} 24. c4 {[%clk 0:03:16.3]} 24... Qd6 {[%clk 0:03:06.1]} 25. Rac1
{[%clk 0:03:12.5]} 25... Kb8 {[%clk 0:03:03.9]} 26. Qa5 {[%clk 0:03:03.8]} 26...
Qd7 {[%clk 0:02:54.3]} 27. Ba3 {[%clk 0:03:02.3]} 27... Bxd4 {[%clk 0:02:49.2]}
28. Red1 {[%clk 0:02:58.6]} 28... Rxg3+ {[%clk 0:02:37.6]} 29. Nxg3 {[%clk
0:02:56.5]} 29... Nxe3+ {[%clk 0:02:35.9]} 30. Kf2 {[%clk 0:02:42.8]} 30...
Nxc4+ {[%clk 0:02:33.7]} 31. Ke2 {[%clk 0:02:40.1]} 31... Nxa5 {[%clk
0:02:30.9]} 32. Bb2 {[%clk 0:02:35.8]} 32... c5 {[%clk 0:02:27.4]} 33. b4 {[%clk
0:02:33.1]} 33... Qb5+ {[%clk 0:02:25.5]} 34. Ke1 {[%clk 0:02:28]} 34... Qxb4+
{[%clk 0:02:24]} 35. Rd2 {[%clk 0:02:25.9]} 35... Bxb2 {[%clk 0:02:20.2]} 36.
Rd1 {[%clk 0:02:21.7]} 36... Nc4 {[%clk 0:02:18.5]} 0-1

[Event "Live Chess"]
[Site "Chess.com"]
[Date "2024.06.01"]
[Round "-"]
[White "LL220284LL"]
[Black "Tatarinov_Maxim"]
[Result "1/2-1/2"]
[WhiteElo "2575"]
[BlackElo "2281"]
[TimeControl "300"]
[EndTime "9:59:22 PDT"]
[Termination "Game drawn - insufficient material"]

1. Nf3 {[%clk 0:04:59]} 1... Nf6 {[%clk 0:04:57.4]} 2. b3 {[%clk 0:04:58.9]}
2... g6 {[%clk 0:04:54.2]} 3. Bb2 {[%clk 0:04:58.8]} 3... Bg7 {[%clk 0:04:51.4]}
4. g3 {[%clk 0:04:57.5]} 4... O-O {[%clk 0:04:50.9]} 5. Bg2 {[%clk 0:04:57.1]}
5... c5 {[%clk 0:04:50.5]} 6. O-O {[%clk 0:04:55.3]} 6... Nc6 {[%clk 0:04:49.5]}
7. e3 {[%clk 0:04:54.3]} 7... d6 {[%clk 0:04:48.9]} 8. d3 {[%clk 0:04:53.4]}
8... Rb8 {[%clk 0:04:48.2]} 9. c4 {[%clk 0:04:52.7]} 9... a6 {[%clk 0:04:47]}
10. Nc3 {[%clk 0:04:50.9]} 10... b5 {[%clk 0:04:45.8]} 11. cxb5 {[%clk
0:04:49.9]} 11... axb5 {[%clk 0:04:45.7]} 12. Nd2 {[%clk 0:04:48.8]} 12... Bd7
{[%clk 0:04:42.7]} 13. Qe2 {[%clk 0:04:44.7]} 13... b4 {[%clk 0:04:41.7]} 14.
Nd5 {[%clk 0:04:37.8]} 14... Nxd5 {[%clk 0:04:40]} 15. Bxg7 {[%clk 0:04:37.2]}
15... Kxg7 {[%clk 0:04:24.9]} 16. Bxd5 {[%clk 0:04:35.6]} 16... Na7 {[%clk
0:04:23.8]} 17. a4 {[%clk 0:04:20.9]} 17... bxa3 {[%clk 0:04:22]} 18. Rxa3
{[%clk 0:04:19.9]} 18... Nb5 {[%clk 0:04:20.4]} 19. Raa1 {[%clk 0:04:08.4]}
19... Qc7 {[%clk 0:04:14.1]} 20. Nc4 {[%clk 0:04:05.2]} 20... Bc6 {[%clk
0:04:11]} 21. Qb2+ {[%clk 0:04:01.4]} 21... Kg8 {[%clk 0:04:09.1]} 22. Bxc6
{[%clk 0:03:55.7]} 22... Qxc6 {[%clk 0:04:09]} 23. Ra5 {[%clk 0:03:52.9]} 23...
Ra8 {[%clk 0:04:04.1]} 24. Rfa1 {[%clk 0:03:52]} 24... Rxa5 {[%clk 0:04:03.1]}
25. Rxa5 {[%clk 0:03:51.9]} 25... Ra8 {[%clk 0:04:01.9]} 26. Qa1 {[%clk
0:03:46.4]} 26... Nc7 {[%clk 0:03:49.1]} 27. h4 {[%clk 0:03:32.1]} 27... h5
{[%clk 0:03:43]} 28. Kh2 {[%clk 0:03:22.6]} 28... Qf3 {[%clk 0:03:20.1]} 29.
Rxa8+ {[%clk 0:03:10.3]} 29... Qxa8 {[%clk 0:03:20]} 30. Qxa8+ {[%clk
0:03:02.8]} 30... Nxa8 {[%clk 0:03:19.9]} 31. f3 {[%clk 0:03:00.8]} 31... Nc7
{[%clk 0:03:14]} 32. g4 {[%clk 0:02:59.7]} 32... hxg4 {[%clk 0:03:11.5]} 33.
fxg4 {[%clk 0:02:59.6]} 33... Kg7 {[%clk 0:03:07.5]} 34. Kg3 {[%clk 0:02:58.8]}
34... f5 {[%clk 0:03:01.2]} 35. gxf5 {[%clk 0:02:55.5]} 35... gxf5 {[%clk
0:03:01.1]} 36. Nb6 {[%clk 0:02:47.9]} 36... Kg6 {[%clk 0:02:44.8]} 37. Nc8
{[%clk 0:02:40.4]} 37... Nd5 {[%clk 0:02:33.5]} 38. e4 {[%clk 0:02:31.8]} 38...
fxe4 {[%clk 0:02:33.4]} 39. dxe4 {[%clk 0:02:31.4]} 39... Nc3 {[%clk 0:02:24.3]}
40. Kf4 {[%clk 0:02:26.5]} 40... Kf6 {[%clk 0:02:19.4]} 41. Nb6 {[%clk
0:02:22.1]} 41... Ne2+ {[%clk 0:02:16]} 42. Ke3 {[%clk 0:02:17.7]} 42... Nc1
{[%clk 0:02:14.8]} 43. Nd5+ {[%clk 0:02:15.8]} 43... Kf7 {[%clk 0:02:12.8]} 44.
b4 {[%clk 0:02:14.5]} 44... cxb4 {[%clk 0:02:12.1]} 45. Nxb4 {[%clk 0:02:14.4]}
45... Nb3 {[%clk 0:02:10.8]} 46. Kf4 {[%clk 0:02:12.7]} 46... Nd4 {[%clk
0:02:08.2]} 47. Kg5 {[%clk 0:02:08.5]} 47... Nf3+ {[%clk 0:02:04.1]} 48. Kg4
{[%clk 0:02:07.3]} 48... Ne5+ {[%clk 0:02:01.1]} 49. Kf5 {[%clk 0:02:05.7]}
49... Nf3 {[%clk 0:01:58.1]} 50. h5 {[%clk 0:02:00.4]} 50... e6+ {[%clk
0:01:57.2]} 51. Kf4 {[%clk 0:01:59.8]} 51... Ne5 {[%clk 0:01:49.6]} 52. Na6
{[%clk 0:01:52.5]} 52... Nd7 {[%clk 0:01:42.9]} 53. Nc7 {[%clk 0:01:32.5]} 53...
Nf6 {[%clk 0:01:37.7]} 54. h6 {[%clk 0:01:31.1]} 54... Kg6 {[%clk 0:01:27.9]}
55. Nxe6 {[%clk 0:01:28.9]} 55... Nxe4 {[%clk 0:01:26.8]} 56. Kxe4 {[%clk
0:01:27.7]} 56... Kxh6 {[%clk 0:01:26.2]} 57. Kd5 {[%clk 0:01:27.6]} 57... Kg6
{[%clk 0:01:25.4]} 58. Kxd6 {[%clk 0:01:27.5]} 1/2-1/2

[Event "Live Chess"]
[Site "Chess.com"]
[Date "2024.06.01"]
[Round "-"]
[White "FlyingChessKestrel13"]
[Black "lyricalschemes"]
[Result "0-1"]
[WhiteElo "2101"]
[BlackElo "2067"]
[TimeControl "300"]
[EndTime "9:59:29 PDT"]
[Termination "lyricalschemes won by resignation"]

1. e4 {[%clk 0:04:57.8]} 1... Nf6 {[%clk 0:04:59.2]} 2. e5 {[%clk 0:04:56.9]}
2... Nd5 {[%clk 0:04:58.7]} 3. d4 {[%clk 0:04:55.9]} 3... d6 {[%clk 0:04:58.1]}
4. c4 {[%clk 0:04:55.2]} 4... Nb6 {[%clk 0:04:57.6]} 5. exd6 {[%clk 0:04:54.6]}
5... cxd6 {[%clk 0:04:57.4]} 6. Nc3 {[%clk 0:04:53.6]} 6... g6 {[%clk
0:04:56.9]} 7. Nf3 {[%clk 0:04:52.5]} 7... Bg7 {[%clk 0:04:56.4]} 8. Be2 {[%clk
0:04:50.9]} 8... O-O {[%clk 0:04:55.7]} 9. O-O {[%clk 0:04:50.2]} 9... Nc6
{[%clk 0:04:55.1]} 10. b3 {[%clk 0:04:46.5]} 10... Bg4 {[%clk 0:04:54]} 11. Bb2
{[%clk 0:04:44.9]} 11... Bxf3 {[%clk 0:04:52.5]} 12. Bxf3 {[%clk 0:04:44.1]}
12... Nxd4 {[%clk 0:04:51.9]} 13. Bxb7 {[%clk 0:04:41.9]} 13... Rb8 {[%clk
0:04:50.6]} 14. Bf3 {[%clk 0:04:38.7]} 14... Nxc4 {[%clk 0:04:49.3]} 15. bxc4
{[%clk 0:04:35.6]} 15... Rxb2 {[%clk 0:04:48.4]} 16. Re1 {[%clk 0:04:27.5]}
16... Nc2 {[%clk 0:04:28.3]} 17. Na4 {[%clk 0:04:06.7]} 17... Nxe1 {[%clk
0:04:24.7]} 18. Nxb2 {[%clk 0:04:04.5]} 18... Nxf3+ {[%clk 0:04:23.4]} 19. gxf3
{[%clk 0:04:02.8]} 19... Bxb2 {[%clk 0:04:23.3]} 20. Rb1 {[%clk 0:04:01.2]}
20... Bg7 {[%clk 0:04:22.7]} 21. Qd5 {[%clk 0:03:57.2]} 21... Qc8 {[%clk
0:04:17.3]} 22. Qb5 {[%clk 0:03:52.7]} 22... Qf5 {[%clk 0:04:14.4]} 23. Qxf5
{[%clk 0:03:50.6]} 23... gxf5 {[%clk 0:04:14.3]} 24. Rb7 {[%clk 0:03:50]} 24...
Rc8 {[%clk 0:04:13]} 25. Rxe7 {[%clk 0:03:48.7]} 25... Bd4 {[%clk 0:04:05.2]}
26. Rd7 {[%clk 0:03:47.2]} 26... Rxc4 {[%clk 0:03:55.3]} 27. Rxd6 {[%clk
0:03:45.3]} 27... Bb6 {[%clk 0:03:54.6]} 28. Rd5 {[%clk 0:03:43.8]} 28... Rc2
{[%clk 0:03:48.6]} 29. a4 {[%clk 0:03:42.8]} 29... Rxf2 {[%clk 0:03:45.2]} 0-1

[Event "Live Chess"]
[Site "Chess.com"]
[Date "2024.06.01"]
[Round "-"]
[White "Grace6363"]
[Black "Keithdfg"]
[Result "0-1"]
[WhiteElo "1145"]
[BlackElo "1755"]
[TimeControl "300"]
[EndTime "9:59:55 PDT"]
[Termination "Keithdfg won by resignation"]

1. d4 {[%clk 0:04:57.5]} 1... d6 {[%clk 0:04:58]} 2. c4 {[%clk 0:04:56.5]} 2...
e5 {[%clk 0:04:55.5]} 3. dxe5 {[%clk 0:04:55]} 3... dxe5 {[%clk 0:04:54.8]} 4.
Qxd8+ {[%clk 0:04:54.2]} 4... Kxd8 {[%clk 0:04:53.8]} 5. f3 {[%clk 0:04:53.6]}
5... f6 {[%clk 0:04:53.4]} 6. e4 {[%clk 0:04:52.5]} 6... Be6 {[%clk 0:04:53]} 7.
Nc3 {[%clk 0:04:50.4]} 7... c6 {[%clk 0:04:52.5]} 8. Be3 {[%clk 0:04:49.5]} 8...
Nd7 {[%clk 0:04:52.1]} 9. g4 {[%clk 0:04:45.8]} 9... Kc7 {[%clk 0:04:51.6]} 10.
O-O-O {[%clk 0:04:42.8]} 10... a5 {[%clk 0:04:51]} 11. a4 {[%clk 0:04:39.8]}
11... Bb4 {[%clk 0:04:48.6]} 12. Nh3 {[%clk 0:04:27.5]} 12... Nc5 {[%clk
0:04:46.1]} 13. Bxc5 {[%clk 0:04:20.3]} 13... Bxc5 {[%clk 0:04:44.1]} 14. f4
{[%clk 0:04:09.8]} 14... exf4 {[%clk 0:04:41]} 15. Nxf4 {[%clk 0:04:08]} 15...
Be3+ {[%clk 0:04:40.1]} 16. Kc2 {[%clk 0:03:55.7]} 16... Bxf4 {[%clk 0:04:38.4]}
17. Bg2 {[%clk 0:03:47.9]} 17... Be5 {[%clk 0:04:37.8]} 18. Rd2 {[%clk
0:03:41.9]} 18... Ne7 {[%clk 0:04:37.3]} 19. h4 {[%clk 0:03:32.4]} 19... Bxg4
{[%clk 0:04:33.2]} 20. Rg1 {[%clk 0:03:24.9]} 20... Be6 {[%clk 0:04:31.1]} 21.
Bf3 {[%clk 0:03:23.5]} 21... g6 {[%clk 0:04:29.7]} 22. h5 {[%clk 0:03:19.4]}
22... g5 {[%clk 0:04:27.3]} 23. Ne2 {[%clk 0:03:09.9]} 23... h6 {[%clk
0:04:24.9]} 24. Nd4 {[%clk 0:03:08]} 24... Bd7 {[%clk 0:04:20.1]} 25. Nb3 {[%clk
0:02:57.4]} 25... Rhd8 {[%clk 0:04:16.4]} 26. Nc5 {[%clk 0:02:53]} 26... b6
{[%clk 0:04:12.4]} 27. Nb3 {[%clk 0:02:47]} 27... Be6 {[%clk 0:04:07.5]} 28.
Rgd1 {[%clk 0:02:45.4]} 28... Rxd2+ {[%clk 0:04:05.7]} 29. Rxd2 {[%clk
0:02:44.1]} 29... Bxc4 {[%clk 0:04:04.8]} 30. Nd4 {[%clk 0:02:34.4]} 30... Rd8
{[%clk 0:04:01.3]} 31. Kc3 {[%clk 0:02:15.3]} 31... Be6 {[%clk 0:03:54.1]} 32.
Be2 {[%clk 0:01:59.9]} 32... c5 {[%clk 0:03:51.2]} 33. Kc2 {[%clk 0:01:48.7]}
33... Rxd4 {[%clk 0:03:49]} 34. Rxd4 {[%clk 0:01:45.7]} 34... Bxd4 {[%clk
0:03:46.2]} 0-1

[Event "Live Chess"]
[Site "Chess.com"]
[Date "2024.06.01"]
[Round "-"]
[White "GerardATHart"]
[Black "Berdgross"]
[Result "0-1"]
[WhiteElo "1431"]
[BlackElo "600"]
[TimeControl "300"]
[EndTime "10:00:07 PDT"]
[Termination "Berdgross won by resignation"]

1. e4 {[%clk 0:04:55]} 1... d5 {[%clk 0:04:59.9]} 2. exd5 {[%clk 0:04:53]} 2...
e6 {[%clk 0:04:59.8]} 3. dxe6 {[%clk 0:04:51.5]} 3... Nc6 {[%clk 0:04:59.7]} 4.
Nf3 {[%clk 0:04:49.8]} 4... Bxe6 {[%clk 0:04:58.5]} 5. d4 {[%clk 0:04:48.1]}
5... Bb4+ {[%clk 0:04:51.1]} 6. c3 {[%clk 0:04:26.3]} 6... Bd6 {[%clk
0:04:48.3]} 7. Bd3 {[%clk 0:04:23.2]} 7... Nf6 {[%clk 0:04:42.9]} 8. O-O {[%clk
0:04:19.9]} 8... Bg4 {[%clk 0:04:40.7]} 9. Re1+ {[%clk 0:04:15.9]} 9... Ne7
{[%clk 0:04:28.5]} 10. Bg5 {[%clk 0:04:07.7]} 10... Bxf3 {[%clk 0:04:23.3]} 11.
Qxf3 {[%clk 0:03:55.7]} 11... O-O {[%clk 0:04:14]} 12. Bxf6 {[%clk 0:03:53.5]}
12... gxf6 {[%clk 0:04:12.3]} 13. Qxf6 {[%clk 0:03:51.4]} 13... Re8 {[%clk
0:04:08]} 14. Re3 {[%clk 0:03:46.3]} 14... Nd5 {[%clk 0:04:00.6]} 15. Rh3 {[%clk
0:03:11.4]} 15... Nxf6 {[%clk 0:03:57.7]} 0-1

[Event "Live Chess"]
[Site "Chess.com"]
[Date "2024.06.01"]
[Round "-"]
[White "elephantgerrald"]
[Black "DavrosLight"]
[Result "1-0"]
[WhiteElo "758"]
[BlackElo "767"]
[TimeControl "300"]
[EndTime "10:00:09 PDT"]
[Termination "elephantgerrald won on time"]

1. e4 {[%clk 0:04:57.9]} 1... e5 {[%clk 0:04:57.5]} 2. Nf3 {[%clk 0:04:56.9]}
2... Nc6 {[%clk 0:04:55.1]} 3. Bb5 {[%clk 0:04:53.8]} 3... Nf6 {[%clk
0:04:44.7]} 4. O-O {[%clk 0:04:51.8]} 4... a6 {[%clk 0:04:23.4]} 5. Bxc6 {[%clk
0:04:41.3]} 5... bxc6 {[%clk 0:04:17.2]} 6. Nc3 {[%clk 0:04:36]} 6... d5 {[%clk
0:04:11.1]} 7. exd5 {[%clk 0:04:08.7]} 7... cxd5 {[%clk 0:04:08]} 8. d3 {[%clk
0:04:07.6]} 8... Bb4 {[%clk 0:04:05.4]} 9. Bd2 {[%clk 0:04:06.3]} 9... Bxc3
{[%clk 0:04:00.3]} 10. Bxc3 {[%clk 0:04:05.2]} 10... d4 {[%clk 0:03:59.5]} 11.
Nxd4 {[%clk 0:04:03.1]} 11... exd4 {[%clk 0:03:55.2]} 12. Re1+ {[%clk
0:04:01.7]} 12... Be6 {[%clk 0:03:52.5]} 13. Bd2 {[%clk 0:03:58.4]} 13... O-O
{[%clk 0:03:46.8]} 14. Bg5 {[%clk 0:03:34.4]} 14... Qd6 {[%clk 0:03:26.7]} 15.
Bxf6 {[%clk 0:03:10.7]} 15... gxf6 {[%clk 0:03:20.3]} 16. c3 {[%clk 0:03:08.9]}
16... dxc3 {[%clk 0:03:16]} 17. bxc3 {[%clk 0:03:07.7]} 17... Kh8 {[%clk
0:03:07.6]} 18. Qh5 {[%clk 0:03:00.5]} 18... Rg8 {[%clk 0:02:54.7]} 19. Re2
{[%clk 0:02:42.8]} 19... Bd5 {[%clk 0:02:40.4]} 20. g3 {[%clk 0:02:38.1]} 20...
Rg5 {[%clk 0:02:22.7]} 21. Qh4 {[%clk 0:02:28.8]} 21... Rag8 {[%clk 0:01:55.8]}
22. Rb1 {[%clk 0:02:15.9]} 22... Bxa2 {[%clk 0:01:41.4]} 23. Rbe1 {[%clk
0:01:50]} 23... Be6 {[%clk 0:01:28.1]} 24. Qe4 {[%clk 0:01:43.1]} 24... Re5
{[%clk 0:00:47.6]} 25. Qf3 {[%clk 0:01:28.3]} 25... Rxe2 {[%clk 0:00:46]} 26.
Rxe2 {[%clk 0:01:22]} 26... Bd5 {[%clk 0:00:39.6]} 27. Qf5 {[%clk 0:01:17.7]}
27... Be6 {[%clk 0:00:31.4]} 28. Qxf6+ {[%clk 0:01:12.7]} 28... Rg7 {[%clk
0:00:29.4]} 29. c4 {[%clk 0:01:07]} 29... Qxd3 {[%clk 0:00:16.1]} 30. Re3 {[%clk
0:01:02]} 30... Qxc4 {[%clk 0:00:08.7]} 31. Qd8+ {[%clk 0:00:59.4]} 31... Rg8
{[%clk 0:00:05.9]} 32. Qf6+ {[%clk 0:00:57.5]} 32... Rg7 {[%clk 0:00:04]} 33.
Qe7 {[%clk 0:00:54.9]} 1-0

[Event "Live Chess"]
[Site "Chess.com"]
[Date "2024.06.01"]
[Round "-"]
[White "Ginger_GM"]
[Black "AnotherOneBadPlayer"]
[Result "0-1"]
[WhiteElo "2665"]
[BlackElo "2154"]
[TimeControl "300"]
[EndTime "10:00:13 PDT"]
[Termination "AnotherOneBadPlayer won by resignation"]

1. e4 {[%clk 0:04:57.4]} 1... e6 {[%clk 0:04:57.2]} 2. Nf3 {[%clk 0:04:56.1]}
2... d5 {[%clk 0:04:55.3]} 3. e5 {[%clk 0:04:55.6]} 3... c5 {[%clk 0:04:53.4]}
4. b4 {[%clk 0:04:54.7]} 4... b6 {[%clk 0:04:50.6]} 5. a3 {[%clk 0:04:50.4]}
5... Qc7 {[%clk 0:04:43.1]} 6. c3 {[%clk 0:04:48.7]} 6... c4 {[%clk 0:04:35.4]}
7. d4 {[%clk 0:04:46.8]} 7... a5 {[%clk 0:04:28.7]} 8. b5 {[%clk 0:04:44.5]}
8... a4 {[%clk 0:04:24.3]} 9. Nbd2 {[%clk 0:04:39.5]} 9... Bd7 {[%clk
0:04:19.5]} 10. Ng5 {[%clk 0:04:36.7]} 10... Bxb5 {[%clk 0:04:03]} 11. Qh5
{[%clk 0:04:35.2]} 11... g6 {[%clk 0:03:53.3]} 12. Qf3 {[%clk 0:04:32.7]} 12...
h6 {[%clk 0:03:45.7]} 13. Rb1 {[%clk 0:04:31.3]} 13... Bc6 {[%clk 0:03:21.9]}
14. Nh3 {[%clk 0:04:29.6]} 14... b5 {[%clk 0:02:57.4]} 15. Nf4 {[%clk
0:04:26.7]} 15... Nd7 {[%clk 0:02:13.1]} 16. h4 {[%clk 0:04:25]} 16... Bg7
{[%clk 0:02:02.6]} 17. Be2 {[%clk 0:04:23.1]} 17... Ne7 {[%clk 0:01:47.5]} 18.
Nf1 {[%clk 0:04:20.4]} 18... O-O-O {[%clk 0:01:41.1]} 19. Ne3 {[%clk 0:04:18.6]}
19... Nxe5 {[%clk 0:01:27.5]} 20. dxe5 {[%clk 0:04:16.7]} 20... d4 {[%clk
0:01:26.3]} 21. Qg4 {[%clk 0:04:10.2]} 21... dxe3 {[%clk 0:01:11.9]} 22. Bxe3
{[%clk 0:04:10.1]} 22... Bxe5 {[%clk 0:01:08.4]} 23. O-O {[%clk 0:04:07.7]}
23... Nf5 {[%clk 0:01:02.8]} 24. Bf3 {[%clk 0:03:54.7]} 24... h5 {[%clk
0:00:59.4]} 25. Qh3 {[%clk 0:03:46]} 25... Bxf4 {[%clk 0:00:57.6]} 26. Bxf4
{[%clk 0:03:44.1]} 26... Qxf4 {[%clk 0:00:51.3]} 27. Bxc6 {[%clk 0:03:42.8]}
27... Rd3 {[%clk 0:00:49.8]} 28. g3 {[%clk 0:03:31.2]} 28... Nxg3 {[%clk
0:00:45.5]} 29. Qg2 {[%clk 0:03:30.9]} 29... Ne2+ {[%clk 0:00:43.8]} 30. Kh1
{[%clk 0:03:27.3]} 30... Qxh4+ {[%clk 0:00:43]} 31. Qh2 {[%clk 0:03:26]} 31...
Rh3 {[%clk 0:00:42.2]} 0-1

[Event "Live Chess"]
[Site "Chess.com"]
[Date "2024.06.01"]
[Round "-"]
[White "NAZRIZ1977"]
[Black "MagnersCarlsberg2870"]
[Result "1/2-1/2"]
[WhiteElo "2125"]
[BlackElo "1892"]
[TimeControl "300"]
[EndTime "10:00:14 PDT"]
[Termination "Game drawn by repetition"]

1. d4 {[%clk 0:04:57.6]} 1... Nf6 {[%clk 0:04:57.6]} 2. Nc3 {[%clk 0:04:56.8]}
2... d6 {[%clk 0:04:53]} 3. e4 {[%clk 0:04:55.6]} 3... g6 {[%clk 0:04:47.5]} 4.
Nge2 {[%clk 0:04:52.6]} 4... Bg7 {[%clk 0:04:46.6]} 5. f3 {[%clk 0:04:52.2]}
5... c6 {[%clk 0:04:45.5]} 6. Be3 {[%clk 0:04:51.5]} 6... b5 {[%clk 0:04:44.3]}
7. Qd2 {[%clk 0:04:50.7]} 7... Qa5 {[%clk 0:04:43.3]} 8. O-O-O {[%clk
0:04:39.1]} 8... Nbd7 {[%clk 0:04:36.4]} 9. Bh6 {[%clk 0:04:35.5]} 9... Bxh6
{[%clk 0:04:31.8]} 10. Qxh6 {[%clk 0:04:35.4]} 10... b4 {[%clk 0:04:29]} 11. Nb1
{[%clk 0:04:34.2]} 11... Qxa2 {[%clk 0:04:26.9]} 12. g4 {[%clk 0:04:33.6]} 12...
a5 {[%clk 0:04:17]} 13. g5 {[%clk 0:04:21.8]} 13... Nh5 {[%clk 0:04:15.4]} 14.
Ng3 {[%clk 0:04:21.4]} 14... Nxg3 {[%clk 0:04:12.9]} 15. hxg3 {[%clk 0:04:21.3]}
15... b3 {[%clk 0:04:11]} 16. cxb3 {[%clk 0:04:14.8]} 16... a4 {[%clk
0:04:09.4]} 17. bxa4 {[%clk 0:04:08]} 17... Rxa4 {[%clk 0:04:07.6]} 18. Qg7
{[%clk 0:04:07.1]} 18... Rf8 {[%clk 0:04:05.2]} 19. Rxh7 {[%clk 0:04:00.4]}
19... Rb4 {[%clk 0:04:02.9]} 20. Rd2 {[%clk 0:03:50.7]} 20... Ba6 {[%clk
0:03:53]} 21. Bh3 {[%clk 0:03:19.7]} 21... Bd3 {[%clk 0:03:44.3]} 22. Rxd3
{[%clk 0:02:31.9]} 22... Qxb2+ {[%clk 0:03:42.4]} 23. Kd1 {[%clk 0:02:31.6]}
23... Qxb1+ {[%clk 0:03:40.4]} 24. Ke2 {[%clk 0:02:31.2]} 24... Rb2+ {[%clk
0:03:34.3]} 25. Rd2 {[%clk 0:02:28.1]} 25... Rxd2+ {[%clk 0:03:16.3]} 26. Kxd2
{[%clk 0:02:28]} 26... Qb2+ {[%clk 0:03:15.5]} 27. Ke3 {[%clk 0:02:24.6]} 27...
Qc3+ {[%clk 0:03:13]} 28. Ke2 {[%clk 0:02:16.9]} 28... Qc2+ {[%clk 0:03:10.6]}
29. Ke3 {[%clk 0:02:16]} 29... Qc3+ {[%clk 0:03:10]} 30. Ke2 {[%clk 0:02:15.4]}
30... Qc2+ {[%clk 0:03:09.3]} 31. Ke3 {[%clk 0:02:14.9]} 31... Qc3+ {[%clk
0:03:08.5]} 1/2-1/2

[Event "Live Chess"]
[Site "Chess.com"]
[Date "2024.06.01"]
[Round "-"]
[White "Ksenia_2013"]
[Black "14141409"]
[Result "0-1"]
[WhiteElo "720"]
[BlackElo "2561"]
[TimeControl "300"]
[EndTime "10:00:19 PDT"]
[Termination "14141409 won by checkmate"]

1. e4 {[%clk 0:04:55.4]} 1... e5 {[%clk 0:04:58.2]} 2. Nf3 {[%clk 0:04:54]} 2...
Nc6 {[%clk 0:04:54.6]} 3. Bc4 {[%clk 0:04:52.8]} 3... Bc5 {[%clk 0:04:54.1]} 4.
O-O {[%clk 0:04:51.5]} 4... Nf6 {[%clk 0:04:53.7]} 5. Nc3 {[%clk 0:04:49.2]}
5... O-O {[%clk 0:04:53]} 6. d3 {[%clk 0:04:48.1]} 6... h6 {[%clk 0:04:51.8]} 7.
Bxh6 {[%clk 0:04:45.7]} 7... gxh6 {[%clk 0:04:50.5]} 8. Nh4 {[%clk 0:04:41.3]}
8... d6 {[%clk 0:04:13]} 9. Nf5 {[%clk 0:04:37.2]} 9... Bxf5 {[%clk 0:04:11.2]}
10. exf5 {[%clk 0:04:35.7]} 10... d5 {[%clk 0:04:09.8]} 11. Nxd5 {[%clk
0:04:32.6]} 11... Nxd5 {[%clk 0:04:07.7]} 12. Bxd5 {[%clk 0:04:30.9]} 12... Qxd5
{[%clk 0:04:05.7]} 13. Qg4+ {[%clk 0:04:28.6]} 13... Kh8 {[%clk 0:04:03.9]} 14.
f6 {[%clk 0:04:26.6]} 14... Rg8 {[%clk 0:04:01.8]} 15. Qh5 {[%clk 0:04:23.1]}
15... Qxg2# {[%clk 0:03:59.2]} 0-1

[Event "Live Chess"]
[Site "Chess.com"]
[Date "2024.06.01"]
[Round "-"]
[White "NottheBishopSacrifice"]
[Black "SvitlanaJ"]
[Result "1-0"]
[WhiteElo "2162"]
[BlackElo "383"]
[TimeControl "300"]
[EndTime "10:00:31 PDT"]
[Termination "NottheBishopSacrifice won by resignation"]

1. g3 {[%clk 0:04:57.9]} 1... d5 {[%clk 0:04:55.7]} 2. Bg2 {[%clk 0:04:57.8]}
2... Nf6 {[%clk 0:04:52.5]} 3. Nf3 {[%clk 0:04:57.7]} 3... Nc6 {[%clk
0:04:48.1]} 4. d4 {[%clk 0:04:55.7]} 4... e5 {[%clk 0:04:42.8]} 5. dxe5 {[%clk
0:04:53.8]} 5... Ne4 {[%clk 0:04:37.8]} 6. O-O {[%clk 0:04:50.8]} 6... Bc5
{[%clk 0:04:16]} 7. Nc3 {[%clk 0:04:46.2]} 7... Nxc3 {[%clk 0:04:11.3]} 8. bxc3
{[%clk 0:04:46.1]} 8... O-O {[%clk 0:04:01.2]} 9. Bg5 {[%clk 0:04:42.7]} 9...
Be7 {[%clk 0:03:53.4]} 10. Bxe7 {[%clk 0:04:39.7]} 10... Qxe7 {[%clk 0:03:51.5]}
11. Qxd5 {[%clk 0:04:38.1]} 11... Bg4 {[%clk 0:03:40.6]} 12. Rab1 {[%clk
0:04:34.2]} 12... Qg5 {[%clk 0:03:31.4]} 13. Nxg5 {[%clk 0:04:32]} 1-0